lending/lending_fUSD_20241007
["ID","MTS","AMOUNT","RATE_DAILY","PERIOD"]
[339996718,1728295866337,-317.38,0.00040273,120]
[339996719,1728295866347,-560.68,0.00040273,120]
[339996720,1728295866361,-850.87,0.00040273,120]
[339996721,1728295866371,-560.68,0.00040273,120]
[339996722,1728295866380,-217.60045621,0.00040273,120]
[339996723,1728295866389,-589.58,0.00040273,120]
[339996724,1728295866399,-660.06,0.00040273,120]
[339996725,1728295866408,-504.02,0.00040273,120]
[339996726,1728295866417,-587.38,0.00040273,120]
[339996727,1728295866427,-166.94571963,0.00040273,120]
[339996728,1728295866436,-711.71,0.00040273,120]
[339996729,1728295866445,-646.3,0.00040273,120]
[339996730,1728295866454,-500.0,0.00040273,21]
[339996731,1728295866463,-511.23,0.00040273,120]
[339996732,1728295866473,-619.93,0.00040273,120]
[339996733,1728295866482,-500.0,0.00040273,120]
[339996734,1728295866492,-530.54,0.00040273,120]
[339996735,1728295866501,-669.98,0.00040273,120]
[339996736,1728295866510,-618.29,0.00040273,120]
[339996737,1728295866519,-526.83,0.00040273,120]
[339996738,1728295866528,-560.05,0.00040273,120]
[339996739,1728295866538,-500.0,0.00040273,120]
[339996740,1728295866547,-530.63,0.00040273,120]
[339996741,1728295866556,-736.68,0.00040273,120]
[339996742,1728295866566,-524.29,0.00040273,120]
[339996743,1728295866576,-636.06,0.00040273,120]
[339996744,1728295866585,-889.03,0.00040273,120]
[339996745,1728295866595,-500.0,0.00040273,120]
[339996746,1728295866606,-600.6,0.00040273,120]
[339996747,1728295866615,-810.09,0.00040273,120]
[339996748,1728295866624,-1346.29,0.00040273,120]
[339996749,1728295866634,-654.7,0.00040273,120]
[339996750,1728295866643,-500.0,0.00040273,120]
[339996751,1728295866653,-556.24,0.00040273,120]
[339996752,1728295866663,-568.77,0.00040273,120]
[339996753,1728295866673,-605.87,0.00040273,120]
[339996754,1728295866682,-2577.88,0.0004028,60]
[339996755,1728295866691,-150.0,0.00040289,7]
[339996756,1728295866700,-2110.0,0.0004038,2]
[339996757,1728295866710,-368.76908784,0.00040425,2]
[339996758,1728295866719,-150.0,0.00040428,7]
[339996759,1728295866728,-220.17020821,0.00040482,2]
[339996760,1728295866738,-463.77664196,0.000405,120]
[339996761,1728295866747,-879.25,0.00040547,120]
[339996762,1728295866756,-832.07,0.00040547,120]
[339996763,1728295866765,-767.12,0.00040547,120]
[339996764,1728295866775,-1284.48,0.00040547,14]
[339996765,1728295866784,-1116.95,0.00040547,120]
[339996766,1728295866793,-775.76,0.00040547,30]
[339996767,1728295866803,-764.7,0.00040547,120]
[339996768,1728295866812,-2242.98,0.00040547,120]
[339996769,1728295866821,-578.66,0.00040547,120]
[339996770,1728295866831,-317.38,0.00040547,120]
[339996771,1728295866840,-560.68,0.00040547,120]
[339996772,1728295866852,-850.87,0.00040547,120]
[339996773,1728295866862,-560.68,0.00040547,120]
[339996774,1728295866871,-589.58,0.00040547,120]
[339996775,1728295866880,-660.06,0.00040547,120]
[339996776,1728295866889,-504.02,0.00040547,120]
[339996777,1728295866899,-587.38,0.00040547,120]
[339996778,1728295866908,-711.71,0.00040547,120]
[339996779,1728295866917,-646.3,0.00040547,120]
[339996780,1728295866926,-500.0,0.00040547,21]
[339996781,1728295866935,-511.23,0.00040547,120]
[339996782,1728295866945,-619.93,0.00040547,120]
[339996783,1728295866954,-500.0,0.00040547,120]
[339996784,1728295866964,-530.54,0.00040547,120]
[339996785,1728295866973,-669.98,0.00040547,120]
[339996786,1728295866983,-618.29,0.00040547,120]
[339996787,1728295866992,-526.83,0.00040547,120]
[339996788,1728295867001,-560.05,0.00040547,120]
[339996789,1728295867010,-500.0,0.00040547,120]
[339996790,1728295867019,-530.63,0.00040547,120]
[339996791,1728295867029,-736.68,0.00040547,120]
[339996792,1728295867038,-524.29,0.00040547,120]
[339996793,1728295867047,-636.06,0.00040547,120]
[339996794,1728295867056,-889.03,0.00040547,120]
[339996795,1728295867065,-500.0,0.00040547,120]
[339996796,1728295867075,-600.6,0.00040547,120]
[339996797,1728295867084,-810.09,0.00040547,120]
[339996798,1728295867092,-1346.29,0.00040547,120]
[339996799,1728295867104,-654.7,0.00040547,120]
[339996800,1728295867114,-500.0,0.00040547,120]
[339996801,1728295867124,-556.24,0.00040547,120]
[339996802,1728295867133,-568.77,0.00040547,120]
[339996803,1728295867143,-11292.086435,0.00040618,15]
[339996804,1728295867152,-328.77723864,0.0004065,2]
[339996805,1728295867162,-214.31741805,0.0004065,8]
[339996806,1728295867171,-150.0,0.0004065,7]
[339996807,1728295867180,-26006.9769556,0.0004067,2]
[339996808,1728295867189,-150.0,0.00040748,7]
[339996809,1728295867199,-4364.21822894,0.00040797,2]
[339996810,1728295867208,-400.0,0.00040818,2]
[339996811,1728295867217,-879.25,0.00040821,120]
[339996812,1728295867226,-832.07,0.00040821,120]
[339996813,1728295867235,-767.12,0.00040821,120]
[339996814,1728295867244,-1284.48,0.00040821,14]
[339996815,1728295867253,-1116.95,0.00040821,120]
[339996816,1728295867262,-775.76,0.00040821,30]
[339996817,1728295867271,-764.7,0.00040821,120]
[339996818,1728295867281,-2242.98,0.00040821,120]
[339996819,1728295867290,-578.66,0.00040821,120]
[339996820,1728295867299,-317.38,0.00040821,120]
[339996821,1728295867308,-560.68,0.00040821,120]
[339996822,1728295867318,-850.87,0.00040821,120]
[339996823,1728295867327,-560.68,0.00040821,120]
[339996824,1728295867336,-589.58,0.00040821,120]
[339996825,1728295867345,-660.06,0.00040821,120]
[339996826,1728295867356,-504.02,0.00040821,120]
[339996827,1728295867365,-587.38,0.00040821,120]
[339996828,1728295867375,-711.71,0.00040821,120]
[339996829,1728295867384,-646.3,0.00040821,120]
[339996830,1728295867393,-500.0,0.00040821,21]
[339996831,1728295867403,-511.23,0.00040821,120]
[339996832,1728295867412,-619.93,0.00040821,120]
[339996833,1728295867422,-500.0,0.00040821,120]
[339996834,1728295867431,-530.54,0.00040821,120]
[339996835,1728295867440,-669.98,0.00040821,120]
[339996836,1728295867449,-618.29,0.00040821,120]
[339996837,1728295867458,-526.83,0.00040821,120]
[339996838,1728295867467,-560.05,0.00040821,120]
[339996839,1728295867477,-500.0,0.00040821,120]
[339996840,1728295867486,-530.63,0.00040821,120]
[339996841,1728295867496,-736.68,0.00040821,120]
[339996842,1728295867505,-524.29,0.00040821,120]
[339996843,1728295867515,-636.06,0.00040821,120]
[339996844,1728295867524,-889.03,0.00040821,120]
[339996845,1728295867534,-500.0,0.00040821,120]
[339996846,1728295867543,-600.6,0.00040821,120]
[339996847,1728295867552,-810.09,0.00040821,120]
[339996848,1728295867561,-1346.29,0.00040821,120]
[339996849,1728295867570,-654.7,0.00040821,120]
[339996850,1728295867580,-500.0,0.00040821,120]
[339996851,1728295867589,-556.24,0.00040821,120]
[339996852,1728295867599,-568.77,0.00040821,120]
[339996853,1728295867608,-195000.0,0.00040868,2]
[339996854,1728295867618,-150.0,0.00040873,7]
[339996855,1728295867628,-150.0,0.00040873,7]
[339996856,1728295867637,-2110.0,0.0004088,2]
[339996857,1728295867646,-150.0,0.000409,30]
[339996858,1728295867742,-1200.0,0.000409,14]
[339996859,1728295867751,-50000.0,0.00041,41]
[339996860,1728295867761,-50000.0,0.00041,31]
[339996861,1728295867771,-253.01,0.00041,120]
[339996862,1728295867780,-900.0,0.00041,42]
[339996863,1728295867789,-1250136.23869508,0.00041,90]
[339996864,1728295867804,-1433.76304378,0.00041,90]
[339996865,1728295867815,-678.51492592,0.00041,90]
[339996866,1728295867831,-150.0,0.00036801,2]
[339996867,1728295867840,-251.47892665,0.00041,90]
[339996868,1728295868005,-150.0,0.00036718,2]
[339996869,1728295868014,-150.0,0.00036726,2]
[339996870,1728295868024,-150.0,0.00036735,2]
[339996871,1728295868034,-150.0,0.00036828,2]
[339996872,1728295868043,-150.0,0.00036834,2]
[339996873,1728295868052,-150.0,0.00036837,2]
[339996874,1728295868061,-150.0,0.00036851,2]
[339996875,1728295868070,-150.0,0.00036857,2]
[339996876,1728295868079,-150.0,0.00036878,2]
[339996877,1728295868088,-150.0,0.00036889,2]
[339996878,1728295868101,-150.0,0.00036895,2]
[339996879,1728295868110,-150.0,0.00036919,2]
[339996880,1728295868119,-150.0,0.00036932,2]
[339996881,1728295868128,-150.0,0.00036953,2]
[339996882,1728295868138,-150.0,0.00036965,2]
[339996883,1728295868148,-539.65,0.00037534,2]
[339996884,1728295868157,-539.65,0.00037808,2]
[339996885,1728295868167,-539.65,0.00038082,120]
[339996886,1728295868177,-117.50559929,0.00038356,120]
[339996887,1728295868191,-422.14440071,0.00038356,120]
[339996888,1728295868201,-539.65,0.0003863,120]
[339996889,1728295868210,-954.06,0.00039178,7]
[339996890,1728295868219,-954.06,0.00039452,7]
[339996891,1728295868228,-954.06,0.00039726,7]
[339996892,1728295868238,-954.06,0.0004,7]
[339996893,1728295868247,-954.06,0.00040273,7]
[339996894,1728295868256,-605.87,0.00040547,120]
[339996895,1728295868265,-954.06,0.00040547,7]
[339996896,1728295868275,-1233.92878154,0.0004065,2]
[339996897,1728295868285,-605.87,0.00040821,120]
[339996898,1728295868294,-954.06,0.00040821,7]
[339996899,1728295868303,-15364.11671775,0.00041,90]
[339996900,1728295868314,-8400.0,0.00041,90]
[339996901,1728295868344,-151.0,0.0003578,7]
[339996902,1728295868355,-150.0,0.00036727,2]
[339996903,1728295868365,-150.0,0.00036861,2]
[339996904,1728295868374,-539.65,0.00038904,120]
[339996905,1728295868384,-4078.18744,0.00041,90]
[339996906,1728295868395,-436.40273075,0.00041,90]
[339996907,1728295868407,-606.36234461,0.00041,90]
[339996908,1728295868422,-285.56665977,0.00041,90]
[339996909,1728295868441,-2561.033408,0.00041,90]
[339996910,1728295868465,-2049.15,0.00041,90]
[339996911,1728296595108,-2302.3682,0.00010393,2]
[339996912,1728296595136,-160.4,0.00010959,2]
[339996913,1728296708770,1051678.2318,0.00011,2]
[339996914,1728296739287,-239466.0,0.00011,2]
[339996929,1728296754893,6576.0,0.00015,10]
[339996930,1728296754920,8436.0,0.00015,10]
[339996931,1728296756626,41564.0,0.000145,7]
[339996932,1728296756650,2751.49204396,0.000145,7]
[339996933,1728296838027,205.0,9.8e-05,2]
[339996938,1728296844256,1800.0,0.000102,3]
[339996939,1728296846406,3700.0,0.000103,3]
[339996940,1728296848500,5600.0,0.000104,3]
[339996941,1728296850608,7400.0,0.000105,3]
[339996942,1728296852712,9300.0,0.000106,3]
[339996945,1728296854813,1800.0,0.000107,3]
[339996946,1728296856906,1800.0,0.000108,3]
[339996947,1728296859020,1800.0,0.000109,3]
[339996948,1728296866567,14048.50795604,0.00014,4]
[339996949,1728296866594,50000.0,0.00014,4]
[339996950,1728296866619,50000.0,0.00014,4]
[339996951,1728296866644,50000.0,0.00014,4]
[339996952,1728296866669,50000.0,0.00014,4]
[339996953,1728296866695,50000.0,0.00014,4]
[339996954,1728296866720,50000.0,0.00014,4]
[339996955,1728296877058,449.81492742,0.0001,2]
[339997008,1728297032011,-152.73,0.00010959,2]
[339997009,1728297032021,-97.27,0.0001099,2]
[339997010,1728297032106,-71.38930083,0.0001099,2]
[339997011,1728297032115,-4032.01137288,0.00010998,2]
[339997012,1728297032124,-4320.51511849,0.00010999,2]
[339997013,1728297032134,-150.0,0.00010999,2]
[339997014,1728297032143,-235.32099219,0.00010999,2]
[339997015,1728297032152,-500.0,0.00010999,2]
[339997016,1728297032161,-383.66762068,0.00010999,2]
[339997017,1728297032170,-500.0,0.00010999,2]
[339997018,1728297032179,-48590.31147349,0.00011,2]
[339997031,1728297037982,-490000.0,0.00011,2]
[339997032,1728297037993,-534.17622,0.00011,2]
[339997033,1728297038071,-837237.4895536,0.00011,2]
[339997034,1728297038302,-61481.99618677,0.00011,2]
[339997045,1728297040209,-1465.0,0.00011,2]
[339997046,1728297040222,-945.17091334,0.00011,2]
[339997047,1728297040233,-621.57251359,0.00011,2]
[339997048,1728297040254,-6777.62664861,0.00011,2]
[339997049,1728297040268,-30676.93794243,0.00011,2]
[339997056,1728297042968,-5585.5545,0.00011,2]
[339997058,1728297043124,-331.97,0.00011,2]
[339997059,1728297043212,-3786.902148,0.00011,2]
[339997060,1728297043299,-390.50873489,0.00011,2]
[339997065,1728297045911,-3176.65090362,0.00011,2]
[339997066,1728297046299,-500.01126079,0.00011,2]
[339997068,1728297046607,-3181.83928172,0.00011,2]
[339997069,1728297046618,-411.1253795,0.00011,2]
[339997070,1728297046631,-495.65644044,0.00011,2]
[339997071,1728297046642,-1082.09903256,0.00011,2]
[339997072,1728297046654,-333.96701608,0.00011,2]
[339997073,1728297046666,-2529.2484,0.00011,2]
[339997074,1728297054294,700.0,0.000103,3]
[339997075,1728297056504,1500.0,0.000104,3]
[339997076,1728297058688,2300.0,0.000105,3]
[339997077,1728297060720,3000.0,0.000106,3]
[339997078,1728297062846,3800.0,0.000107,3]
[339997079,1728297064976,700.0,0.000108,3]
[339997080,1728297067084,700.0,0.000109,3]
[339997083,1728297661671,181.47,0.00010064,2]
[339997084,1728297856462,6221.26162616,0.00010189,2]
[339997085,1728297927316,150.0,9.888e-05,2]
[339997086,1728298030590,-500.0,0.00010289,2]
[339997087,1728298030610,-499.18,0.00010289,2]
[339997088,1728298030630,-0.82,0.00010376,2]
[339997095,1728298033592,-1000.0,0.00010376,2]
[339997096,1728298034814,-591.83,0.00010376,2]
[339997097,1728298034834,-250.0,0.00010768,2]
[339997098,1728298034859,-158.17,0.0001078,2]
[339997099,1728298035374,300.0,0.000103,3]
[339997100,1728298036211,-4.031,0.0001078,2]
[339997101,1728298036238,-159.744,0.0001078,2]
[339997102,1728298036258,-836.225,0.000109,2]
[339997103,1728298037243,-945.43188592,0.000109,2]
[339997104,1728298037265,-54.56811408,0.000109,2]
[339997105,1728298037474,600.0,0.000104,3]
[339997106,1728298039500,-1000.0,0.000109,2]
[339997107,1728298039641,1000.0,0.000105,3]
[339997108,1728298041292,-1000.0,0.000109,2]
[339997109,1728298041750,1300.0,0.000106,3]
[339997110,1728298042751,-1000.0,0.000109,2]
[339997111,1728298043860,1700.0,0.000107,3]
[339997112,1728298044053,-1000.0,0.000109,2]
[339997113,1728298045199,-1000.0,0.000109,2]
[339997114,1728298045991,300.0,0.000108,3]
[339997115,1728298048102,300.0,0.000109,3]
[339997117,1728298108701,-1000.0,0.000109,2]
[339997118,1728298110111,-1000.0,0.000109,2]
[339997119,1728298111050,-1000.0,0.00010913,2]
[339997120,1728298112569,-1000.0,0.00010913,2]
[339997121,1728298113827,-573.18,0.00010913,2]
[339997122,1728298113848,-300.0,0.00010926,2]
[339997123,1728298113871,-126.82,0.00010926,2]
[339997124,1728298115059,-23.18,0.00010926,2]
[339997125,1728298115079,-411.30959386,0.00010927,2]
[339997126,1728298115100,-565.51040614,0.00010927,2]
[339997127,1728298117844,-1000.0,0.00010927,2]
[339997128,1728298119223,-1000.0,0.00010927,2]
[339997129,1728298120566,-1000.0,0.00010927,2]
[339997130,1728298121857,-176.65125936,0.00010927,2]
[339997131,1728298121878,-823.34874064,0.00010927,2]
[339997132,1728298126451,-500.0,0.00010927,2]
[339997166,1728298232178,-2056.493,0.000109,2]
[339997167,1728298232188,-7143.507,0.00010927,2]
[339997168,1728298232199,-1584.40976051,0.00010927,2]
[339997169,1728298232210,-700.0,0.00010927,2]
[339997170,1728298232222,-3815.34914289,0.00010927,2]
[339997171,1728298232231,-1147.76082178,0.00010927,2]
[339997172,1728298232241,-274.2063959,0.00010927,2]
[339997173,1728298232250,-281.16033202,0.00010927,2]
[339997174,1728298232260,-7549.20377744,0.00010927,2]
[339997175,1728298232269,-257.8498702,0.00010927,2]
[339997176,1728298232278,-2979.98,0.00010927,2]
[339997177,1728298232288,-250.0,0.00010931,2]
[339997178,1728298232298,-499.99,0.00010931,2]
[339997179,1728298232307,-160.77,0.00010959,2]
[339997180,1728298232317,-250.0,0.00010959,2]
[339997181,1728298232326,-296.85823266,0.00010973,2]
[339997182,1728298232336,-1000.0,0.00010978,2]
[339997183,1728298232346,-164.72469453,0.00010999,2]
[339997184,1728298232356,-153.74084674,0.00010999,2]
[339997185,1728298232365,-298825.49385983,0.00011,2]
[339997186,1728298232386,-13264.52092913,0.00011,2]
[339997187,1728298232397,-6249.56754117,0.00011,2]
[339997188,1728298232408,-2723.3798655,0.00011,2]
[339997195,1728298238153,-10000.0,0.00011,2]
[339997196,1728298238282,-5906566.38507709,0.00011,2]
[339997197,1728298238294,-1195729.53765974,0.00011,2]
[339997198,1728298238306,-79100.03657803,0.00011,2]
[339997199,1728298238317,-140533.99345,0.00011,2]
[339997200,1728298238329,-92911.26172869,0.00011,2]
[339997201,1728298238340,-403750.06179529,0.00011,2]
[339997202,1728298238411,-399.25669282,0.00011,2]
[339997203,1728298238422,-250.0,0.00011,2]
[339997204,1728298238445,-1733.45721338,0.00011,2]
[339997283,1728298240372,-153.09276071,0.00011,2]
[339997284,1728298240384,-1124.02077438,0.00011,2]
[339997285,1728298240396,-1594.44684523,0.00011,2]
[339997286,1728298240511,-7971.90000001,0.00011,2]
[339997287,1728298240524,-1424.0,0.00011,2]
[339997288,1728298240535,-276.91061512,0.00011,2]
[339997289,1728298240546,-1003.50055156,0.00011,2]
[339997290,1728298240557,-12637.99943042,0.00011,2]
[339997292,1728298240568,-6350.7067306,0.00011,2]
[339997293,1728298240579,-6102.1638032,0.00011,2]
[339997294,1728298240590,-4564.99427688,0.00011,2]
[339997295,1728298240601,-419.77238971,0.00011,2]
[339997296,1728298240612,-1656.58520388,0.00011,2]
[339997297,1728298240624,-9681.60895399,0.00011,2]
[339997298,1728298240635,-2042.81024937,0.00011,2]
[339997299,1728298240647,-945.701492,0.00011,2]
[339997300,1728298240658,-1521.48130978,0.00011,2]
[339997301,1728298240670,-1819.20996264,0.00011,2]
[339997302,1728298240680,-31647.02983223,0.00011,2]
[339997303,1728298240691,-8145.79231089,0.00011,2]
[339997304,1728298240703,-4424.51532221,0.00011,2]
[339997305,1728298240714,-1684.39983408,0.00011,2]
[339997306,1728298240725,-1669.29441603,0.00011,2]
[339997307,1728298240736,-659.91,0.00011,2]
[339997308,1728298240746,-607.64675005,0.00011,2]
[339997309,1728298240758,-500.0,0.00011,2]
[339997310,1728298240769,-3311.6960867,0.00011,2]
[339997311,1728298240780,-288.74194674,0.00011,2]
[339997312,1728298240792,-38845.77453441,0.00011,2]
[339997313,1728298240803,-644.08472678,0.00011,2]
[339997314,1728298240813,-1216.15843688,0.00011,2]
[339997315,1728298240824,-6139.93073305,0.00011,2]
[339997316,1728298240835,-1180.22303273,0.00011,2]
[339997317,1728298240846,-10004.08790507,0.00011,2]
[339997318,1728298240857,-376.955934,0.00011,2]
[339997319,1728298240869,-387.98040367,0.00011,2]
[339997320,1728298240880,-699.78547114,0.00011,2]
[339997328,1728298243309,-940.096497,0.00011,2]
[339997329,1728298243320,-2211.07566504,0.00011,2]
[339997330,1728298243332,-327.58363201,0.00011,2]
[339997331,1728298243344,-1570.55517767,0.00011,2]
[339997332,1728298243355,-1389.0,0.00011,2]
[339997333,1728298243366,-5595.82016693,0.00011,2]
[339997334,1728298243377,-314.02677583,0.00011,2]
[339997335,1728298243389,-286.93626806,0.00011,2]
[339997336,1728298243401,-2692.80732628,0.00011,2]
[339997337,1728298243412,-701.56000045,0.00011,2]
[339997338,1728298243423,-510.81800001,0.00011,2]
[339997339,1728298243434,-396.372256,0.00011,2]
[339997340,1728298243446,-1732.88242047,0.00011,2]
[339997341,1728298243457,-571.77,0.00011,2]
[339997342,1728298243468,-6246.50973598,0.00011,2]
[339997343,1728298243479,-2117.4910958,0.00011,2]
[339997344,1728298243491,-713017.89493867,0.00011,2]
[339997345,1728298243501,-3169.21683686,0.00011,2]
[339997346,1728298243513,-1270.0,0.00011,2]
[339997347,1728298243524,-831.48450349,0.00011,2]
[339997348,1728298243535,-3664.0000002,0.00011,2]
[339997349,1728298243546,-1599.08934919,0.00011,2]
[339997350,1728298243557,-873.04153788,0.00011,2]
[339997351,1728298243568,-985.07438389,0.00011,2]
[339997352,1728298243579,-455.37695136,0.00011,2]
[339997353,1728298243590,-457.54999977,0.00011,2]
[339997354,1728298243601,-8393.91185545,0.00011,2]
[339997355,1728298243612,-465.43078983,0.00011,2]
[339997356,1728298243623,-1252.3653747,0.00011,2]
[339997357,1728298243634,-748.63230573,0.00011,2]
[339997358,1728298243646,-1578.07565937,0.00011,2]
[339997374,1728298246106,-205.22593,0.0001089,2]
[339997375,1728298246116,-20739.5692098,0.00011,2]
[339997376,1728298246128,-7764.03034652,0.00011,2]
[339997377,1728298246138,-300.0,0.00011,2]
[339997378,1728298246152,-276.345,0.00011,2]
[339997379,1728298246163,-1180.70943069,0.00011,2]
[339997380,1728298246184,-580.59172386,0.00011,2]
[339997381,1728298246196,-7160.977118,0.00011,2]
[339997382,1728298246207,-1021.93060249,0.00011,2]
[339997383,1728298246224,-1367.99179144,0.00011,2]
[339997384,1728298246265,-6537.38357383,0.00011,2]
[339997385,1728298246303,-313.06330969,0.00011,2]
[339997386,1728298246315,-63100.0,0.00011,2]
[339997387,1728298246352,-573.27155235,0.00011,2]
[339997388,1728298246393,-1266.82,0.00011,2]
[339997389,1728298246405,-3151.08700003,0.00011,2]
[339997390,1728298246417,-664.41391343,0.00011,2]
[339997391,1728298246428,-1058.70623904,0.00011,2]
[339997393,1728298247542,300.0,0.000107,3]
[339997394,1728298249666,700.0,0.000108,3]
[339997395,1728298251769,1100.0,0.000109,3]
[339997396,1728298624340,-918.0,0.0001089,2]
[339997397,1728298624362,-82.0,0.000109,2]
[339997398,1728298626490,-100.1578,0.000109,2]
[339997399,1728298626515,-172.932823,0.00010927,2]
[339997400,1728298626537,-726.909377,0.00010973,2]
[339997401,1728298628649,-1000.0,0.00010973,2]
[339997402,1728298632711,-16.940623,0.00010973,2]
[339997403,1728298632731,-383.059377,0.00010973,2]
[339997404,1728298758976,-301.31415962,0.000109,2]
[339997405,1728298758997,-7550.76400792,0.00010927,2]
[339997406,1728298759018,-162.78018815,0.00010927,2]
[339997407,1728298759039,-180.38833321,0.00010927,2]
[339997408,1728298759060,-159.88,0.00010959,2]
[339997409,1728298759081,-500.0,0.00010973,2]
[339997410,1728298759101,-500.0,0.00010973,2]
[339997411,1728298759123,-1944.8733111,0.0001099,2]
[339997412,1728298957925,593.67,9.705e-05,2]
[339997413,1728299189299,333.0,0.00022,60]
[339997415,1728299247396,300.0,0.000107,3]
[339997416,1728299249480,600.0,0.000108,3]
[339997417,1728299251633,1000.0,0.000109,3]
[339997425,1728299432292,-300.0,0.00010899,2]
[339997426,1728299432301,-2405.49053353,0.000109,2]
[339997427,1728299432313,-748.87385005,0.000109,2]
[339997428,1728299432324,-3897.67600053,0.000109,2]
[339997429,1728299432335,-352.97033278,0.000109,2]
[339997430,1728299432398,-800.0,0.000109,2]
[339997431,1728299432409,-4490.59023949,0.000109,2]
[339997432,1728299432420,-633.33,0.000109,2]
[339997433,1728299432431,-3321.65818036,0.000109,2]
[339997434,1728299432443,-2132.33218236,0.000109,2]
[339997435,1728299432566,-540.9746018,0.000109,2]
[339997436,1728299432578,-43944.1587791,0.000109,2]
[339997437,1728299432587,-195.47340947,0.00010927,2]
[339997438,1728299432597,-13444.99712865,0.0001099,2]
[339997439,1728299432606,-2043.47368449,0.00010997,2]
[339997440,1728299432617,-150.0,0.00010999,2]
[339997442,1728299432627,-172.93962176,0.00010999,2]
[339997444,1728299432636,-500.0,0.00010999,2]
[339997446,1728299432645,-191.46611885,0.00010999,2]
[339997448,1728299432654,-500.0,0.00010999,2]
[339997450,1728299432664,-13554.27365473,0.00011,2]
[339997461,1728299438522,-1721847.69108714,0.00011,2]
[339997462,1728299438534,-132489.684172,0.00011,2]
[339997463,1728299438608,-3724.95745961,0.00011,2]
[339997464,1728299438621,-3151.6485,0.00011,2]
[339997465,1728299438632,-582.24356216,0.00011,2]
[339997466,1728299438644,-2510.72,0.00011,2]
[339997467,1728299438911,-663.2,0.00011,2]
[339997468,1728299438923,-444.35709894,0.00011,2]
[339997492,1728299440271,-436.66045468,0.00011,2]
[339997493,1728299440283,-1493.397668,0.00011,2]
[339997494,1728299440431,-54.89347014,0.00010999,2]
[339997495,1728299440443,-445.10652986,0.00010999,2]
[339997496,1728299440452,-500.0,0.00010999,2]
[339997497,1728299440461,-142076.68407389,0.00011,2]
[339997498,1728299440534,-352.56971474,0.00010999,2]
[339997499,1728299440544,-93960.14028527,0.00011,2]
[339997500,1728299440555,-628.21759,0.00011,2]
[339997501,1728299440686,-10686.92017538,0.00011,2]
[339997502,1728299440697,-2546.88,0.00011,2]
[339997525,1728299443843,-1388.82081271,0.00011,2]
[339997526,1728299443913,-1886.1,0.00011,2]
[339997527,1728299443924,-363.75556695,0.00011,2]
[339997528,1728299443994,-1260.0,0.00011,2]
[339997529,1728299444022,-589.97098,0.00011,2]
[339997530,1728299444186,-14907.27874764,0.00011,2]
[339997531,1728299444198,-4228.83372321,0.00011,2]
[339997541,1728299446259,-2522.340612,0.00011,2]
[339997542,1728299446520,-37226.53296295,0.00011,2]
[339997543,1728299446530,-1165.19,0.00011518,2]
[339997544,1728299446540,-594.15,0.00011518,2]
[339997545,1728299446550,-250.0,0.00011549,2]
[339997546,1728299446559,-693.504,0.00011552,2]
[339997547,1728299446568,-616.940623,0.00011552,2]
[339997548,1728299446578,-227.77,0.00011595,2]
[339997549,1728299446587,-3293.26,0.00011595,2]
[339997550,1728299446597,-499.99,0.00011595,2]